bitfinex/quotes_SOLUSD_20250528
["timestamp","ask_amount","ask_price","bid_price","bid_amount"]
[1748470670057,0.28432314,170.64,170.59,16.99104712]
[1748470670560,17.27537026,170.64,170.59,16.99104712]
[1748470671558,16.99104712,170.63,170.58,16.99104712]
[1748470674156,16.99104712,170.62,170.57,16.99104712]
[1748470674667,16.99104712,170.63,170.58,16.99104712]
[1748470675243,16.99104712,170.64,170.59,16.99104712]
[1748470675456,16.99104712,170.64,170.6,16.99104712]
[1748470677345,16.99104712,170.64,170.59,16.99104712]
[1748470677955,16.99104712,170.62,170.55,150.0382]
[1748470678150,16.99104712,170.62,170.57,16.99104712]
[1748470679067,16.99104712,170.62,170.58,16.99104712]
[1748470680143,16.99104712,170.63,170.58,16.99104712]
[1748470681866,16.99104712,170.64,170.59,16.99104712]
[1748470683148,17.27537026,170.65,170.6,16.99104712]
[1748470684667,16.99104712,170.65,170.6,16.99104712]
[1748470684969,16.99104712,170.64,170.59,16.99104712]
[1748470687569,16.99104712,170.63,170.56,174.4]
[1748470687756,16.99104712,170.63,170.58,16.99104712]
[1748470687954,10.8743108,170.63,170.58,10.8743108]
[1748470689077,10.8743108,170.63,170.59,10.8743108]
[1748470689577,10.8743108,170.64,170.59,10.8743108]
[1748470691356,10.8743108,170.63,170.58,10.8743108]
[1748470696982,20.43863394,170.64,170.59,10.8743108]
[1748470699567,20.43863394,170.64,170.58,10.8743108]
[1748470699568,10.8743108,170.63,170.58,10.8743108]
[1748470705375,10.8743108,170.62,170.56,10.8743108]
[1748470706481,10.8743108,170.62,170.57,10.8743108]
[1748470708785,0.28432314,170.63,170.58,10.8743108]
[1748470708786,11.15863394,170.63,170.58,10.8743108]
[1748470710477,10.8743108,170.62,170.57,10.8743108]
[1748470711090,10.8743108,170.62,170.55,1.6382]
[1748470711277,10.8743108,170.62,170.57,10.8743108]
[1748470715476,10.8743108,170.62,170.55,1.6382]
[1748470715689,10.8743108,170.62,170.57,10.8743108]
[1748470717571,10.8743108,170.62,170.55,1.6382]
[1748470717771,10.8743108,170.62,170.57,10.8743108]
[1748470720291,11.15863394,170.63,170.58,10.8743108]
[1748470720604,9.28,170.64,170.59,10.8743108]
[1748470720605,20.1543108,170.64,170.59,10.8743108]
[1748470721300,9.28,170.64,170.61,10.8743108]
[1748470722105,9.28,170.64,170.57,31.86245456]
[1748470722286,9.28,170.64,170.6,10.8743108]
[1748470725677,9.28,170.64,170.61,10.8743108]
[1748470729916,9.28,170.64,170.63,10.8743108]
[1748470730295,10.8743108,170.68,170.63,10.8743108]
[1748470731015,16.7332943,170.68,170.63,10.8743108]
[1748470731234,10.8743108,170.67,170.63,10.8743108]
[1748470734728,15.42299514,170.69,170.63,10.8743108]
[1748470734921,9.56432314,170.69,170.65,10.8743108]
[1748470735130,20.43863394,170.69,170.65,10.8743108]
[1748470735330,20.43863394,170.69,170.64,10.8743108]
[1748470735834,26.29736139,170.69,170.64,10.8743108]
[1748470736711,10.8743108,170.68,170.64,10.8743108]
[1748470738004,15.42305059,170.69,170.64,10.8743108]
[1748470738204,10.8743108,170.68,170.64,10.8743108]
[1748470741327,10.8743108,170.68,170.63,10.8743108]
[1748470743726,10.8743108,170.68,170.64,10.8743108]
[1748470754134,10.8743108,170.68,170.65,10.8743108]
[1748470757149,17.01721753,170.69,170.65,10.8743108]
[1748470757559,17.01721753,170.69,170.64,10.8743108]
[1748470761865,10.8743108,170.65,170.61,148.4]
[1748470762174,10.8743108,170.64,170.61,148.4]
[1748470762345,10.8743108,170.64,170.59,10.8743108]
[1748470765165,10.8743108,170.65,170.6,10.8743108]
[1748470765360,0.28432314,170.65,170.61,10.8743108]
[1748470766558,46.21643746,170.66,170.61,10.8743108]
[1748470768246,35.34212666,170.66,170.63,10.8743108]
[1748470768444,10.8743108,170.69,170.64,10.8743108]
[1748470769444,10.8743108,170.68,170.64,10.8743108]
[1748470774577,5.85875841,170.69,170.64,10.8743108]
[1748470774796,10.8743108,170.69,170.64,10.8743108]
[1748470775884,20.1343108,170.69,170.64,10.8743108]
[1748470779769,9.26,170.69,170.66,10.8743108]
[1748470786069,8.02852314,170.73,170.68,10.8743108]
[1748470786070,0.28432314,170.73,170.68,10.8743108]
[1748470786265,9.24,170.74,170.72,10.8743108]
[1748470786875,9.24,170.74,170.71,10.8743108]
[1748470787483,9.24,170.74,170.72,10.8743108]
[1748470788194,9.24,170.74,170.73,10.8743108]
[1748470788803,84.32,170.78,170.73,10.8743108]
[1748470788968,84.32,170.78,170.75,10.8743108]
[1748470790194,25.96911827,170.8,170.75,10.8743108]
[1748470790981,15.09480747,170.8,170.76,10.8743108]
[1748470791376,9.24,170.8,170.76,10.8743108]
[1748470791578,9.24,170.8,170.73,45.1345432]
[1748470791884,15.09502683,170.8,170.76,10.8743108]
[1748470792288,9.24,170.8,170.76,10.8743108]
[1748470792879,15.09484301,170.8,170.76,10.8743108]
[1748470794681,15.09484301,170.8,170.77,10.8743108]
[1748470796009,9.24,170.8,170.76,10.8743108]
[1748470797707,9.24,170.8,170.77,10.8743108]
[1748470799916,9.24,170.8,170.78,10.8743108]
[1748470802919,9.24,170.8,170.79,10.8743108]
[1748470803413,9.24,170.8,170.77,10.8743108]
[1748470803611,10.8743108,170.78,170.73,12.5116108]
[1748470803806,0.14216157,170.79,170.72,10.8743108]
[1748470803807,10.8743108,170.77,170.72,10.8743108]
[1748470804001,16.73014592,170.77,170.72,10.8743108]
[1748470804411,11.01647237,170.79,170.74,10.8743108]
[1748470805498,10.8743108,170.78,170.73,10.8743108]
[1748470805909,10.8743108,170.77,170.73,10.8743108]
[1748470807699,10.8743108,170.77,170.7,10.8743108]
[1748470807700,10.8743108,170.74,170.7,10.8743108]
[1748470808601,10.8743108,170.75,170.7,10.8743108]
[1748470809918,16.96846864,170.75,170.7,16.96846864]
[1748470812329,16.96846864,170.74,170.69,18.56416864]
[1748470813105,5.99844381,170.76,170.71,16.96846864]
[1748470813307,16.96846864,170.75,170.71,16.96846864]
[1748470813524,16.96846864,170.75,170.7,16.96846864]
[1748470818146,22.82499008,170.75,170.7,16.96846864]
[1748470818444,16.96846864,170.74,170.7,16.96846864]
[1748470825351,22.82503782,170.75,170.7,16.96846864]
[1748470825946,16.96846864,170.75,170.7,16.96846864]
[1748470828556,9.38216157,170.76,170.71,16.96846864]
[1748470828745,9.24,170.76,170.69,1.5957]
[1748470829063,16.96846864,170.74,170.7,16.96846864]
[1748470829653,16.96846864,170.75,170.7,16.96846864]
[1748470829878,22.82505686,170.75,170.7,16.96846864]
[1748470831960,16.71664931,170.75,170.7,10.86006109]
[1748470832159,10.86006109,170.72,170.68,10.86006109]
[1748470832939,10.86006109,170.71,170.66,10.86006109]
[1748470833949,16.97643878,170.71,170.66,16.97643878]
[1748470834145,16.97643878,170.71,170.67,16.97643878]
[1748470834478,16.97643878,170.72,170.67,16.97643878]
[1748470834648,17.26076192,170.75,170.7,16.97643878]
[1748470836380,16.97643878,170.74,170.69,16.97643878]
[1748470839441,9.24,170.76,170.7,16.97643878]
[1748470839653,16.97643878,170.75,170.7,16.97643878]
[1748470841150,16.97643878,170.74,170.69,16.97643878]
[1748470841962,16.97643878,170.73,170.68,16.97643878]
[1748470842275,16.97643878,170.73,170.69,16.97643878]
[1748470842452,16.97643878,170.75,170.7,16.97643878]
[1748470846474,16.97643878,170.74,170.69,16.97643878]
[1748470849165,16.97643878,170.74,170.7,16.97643878]
[1748470851365,16.97643878,170.75,170.7,16.97643878]
[1748470852860,16.97643878,170.75,170.69,16.97643878]
[1748470853163,16.97643878,170.74,170.69,16.97643878]
[1748470853376,16.97643878,170.75,170.69,16.97643878]
[1748470854090,10.8605346,170.75,170.69,10.8605346]
[1748470857965,10.8605346,170.75,170.7,10.8605346]
[1748470858173,20.1005346,170.76,170.71,10.8605346]
[1748470858365,20.1005346,170.76,170.7,10.8605346]
[1748470858683,20.1005346,170.76,170.71,10.8605346]
[1748470859278,9.24,170.76,170.73,10.8605346]
[1748470859674,9.24,170.76,170.7,1.6157]
[1748470859988,10.8605346,170.74,170.67,174.4]
[1748470860188,10.8605346,170.73,170.68,10.8605346]
[1748470861865,16.97154594,170.73,170.68,16.97154594]
[1748470863998,16.97154594,170.72,170.67,42.97154594]
[1748470866699,16.97154594,170.71,170.67,42.97154594]
[1748470869381,16.97154594,170.74,170.69,16.97154594]
[1748470869797,16.97154594,170.73,170.68,16.97154594]
[1748470873301,16.97154594,170.73,170.66,150.0157]
[1748470873513,16.97154594,170.71,170.66,166.98724594]
[1748470875802,16.97154594,170.71,170.66,18.58724594]
[1748470882011,10.86516759,170.71,170.66,38.48086759]
[1748470882829,16.72306495,170.71,170.66,38.48086759]
[1748470883017,5.85789736,170.71,170.66,38.48086759]
[1748470883220,10.86516759,170.71,170.67,10.86516759]
[1748470884438,9.22,170.72,170.68,10.86516759]
[1748470889516,9.22,170.72,170.69,10.86516759]
[1748470891612,10.86516759,170.74,170.69,10.86516759]
[1748470894154,10.86516759,170.73,170.69,10.86516759]
[1748470895064,9.22,170.75,170.71,10.86516759]
[1748470895584,9.22,170.75,170.72,10.86516759]
[1748470899566,9.2,170.8,170.74,10.86516759]
[1748470899871,9.2,170.8,170.76,10.86516759]
[1748470900380,10.86516759,170.79,170.75,10.86516759]
[1748470901382,10.86516759,170.79,170.74,10.86516759]
[1748470902388,9.2,170.8,170.74,10.86516759]
[1748470902551,10.86516759,170.79,170.74,10.86516759]
[1748470903988,20.06516759,170.8,170.76,10.86516759]
[1748470904482,9.2,170.8,170.77,10.86516759]
[1748470904680,9.2,170.8,170.78,10.86516759]
[1748470904989,9.2,170.8,170.79,10.86516759]
[1748470905175,10.86516759,170.83,170.79,10.86516759]
[1748470905568,9.2,170.85,170.79,10.86516759]
[1748470905769,10.86516759,170.84,170.79,10.86516759]
[1748470907691,10.86516759,170.84,170.8,10.86516759]
[1748470907906,16.95021661,170.84,170.8,16.95021661]
[1748470908582,9.2,170.85,170.81,16.95021661]
[1748470908783,16.95021661,170.83,170.79,16.95021661]
[1748470908997,16.95021661,170.82,170.77,16.95021661]
[1748470909391,16.95021661,170.81,170.76,166.98631661]
[1748470909576,16.95021661,170.81,170.76,18.58631661]
[1748470909777,22.80455718,170.82,170.77,16.95021661]
[1748470909986,22.80455718,170.82,170.78,16.95021661]
[1748470910190,16.95021661,170.82,170.78,16.95021661]
[1748470911193,22.80438524,170.82,170.78,16.95021661]
[1748470915280,16.95021661,170.83,170.78,16.95021661]
[1748470916786,22.80424615,170.83,170.78,16.95021661]
[1748470919394,17.23453975,170.83,170.78,16.95021661]
[1748470921514,23.08860119,170.83,170.78,16.95021661]
[1748470923201,23.08860119,170.83,170.79,16.95021661]
[1748470923536,16.95021661,170.83,170.79,16.95021661]
[1748470923901,22.80378588,170.84,170.79,16.95021661]
[1748470926049,16.95021661,170.83,170.79,16.95021661]
[1748470927930,10.84958366,170.83,170.79,10.84958366]
[1748470931122,16.70336349,170.83,170.79,10.84958366]
[1748470931933,10.84958366,170.83,170.79,10.84958366]
[1748470934225,5.85356317,170.84,170.79,10.84958366]
[1748470934551,16.70314683,170.84,170.79,10.84958366]
[1748470935243,10.84958366,170.83,170.79,10.84958366]
[1748470937773,10.84958366,170.81,170.76,1.6361]
[1748470937968,10.84958366,170.81,170.76,10.84958366]
[1748470938152,10.84958366,170.8,170.76,10.84958366]
[1748470939246,20.04958366,170.81,170.76,10.84958366]
[1748470940242,25.90415002,170.81,170.76,10.84958366]
[1748470942056,25.90415002,170.81,170.77,10.84958366]
[1748470944371,20.04958366,170.81,170.77,10.84958366]
[1748470945065,9.2,170.81,170.77,10.84958366]
[1748470949259,9.2,170.81,170.78,10.84958366]
[1748470950882,9.2,170.81,170.79,10.84958366]
[1748470951559,9.2,170.81,170.78,10.84958366]
[1748470952174,15.05446416,170.81,170.78,10.84958366]
[1748470952393,25.9040804,170.81,170.76,10.84958366]
[1748470952690,25.9040804,170.81,170.72,168.62624886]
[1748470952691,10.84958366,170.77,170.72,159.24958366]
[1748470952905,10.84958366,170.77,170.72,10.84958366]
[1748470953112,10.84958366,170.79,170.74,10.84958366]
[1748470953280,35.66,170.8,170.75,10.84958366]
[1748470953480,46.50958366,170.8,170.75,10.84958366]
[1748470954206,52.36452784,170.8,170.75,10.84958366]
[1748470954411,10.84958366,170.79,170.75,10.84958366]
[1748470954711,35.66,170.8,170.75,10.84958366]
[1748470955013,10.84958366,170.79,170.75,10.84958366]
[1748470956107,41.51483215,170.8,170.75,10.84958366]
[1748470956108,35.66,170.8,170.75,10.84958366]
[1748470956434,20.04958366,170.81,170.76,10.84958366]
[1748470956599,20.04958366,170.81,170.77,10.84958366]
[1748470957594,20.04958366,170.81,170.76,10.84958366]
[1748470957923,10.84958366,170.8,170.76,10.84958366]
[1748470958120,10.84958366,170.8,170.75,10.84958366]
[1748470958283,10.84958366,170.79,170.75,10.84958366]
[1748470958483,16.70471175,170.8,170.75,10.84958366]
[1748470964310,15.05458483,170.81,170.75,10.84958366]
[1748470964621,10.84958366,170.8,170.76,10.84958366]
[1748470969436,10.84958366,170.8,170.75,10.84958366]
[1748470977154,10.84958366,170.79,170.74,1.6646]
[1748470977314,10.84958366,170.79,170.74,12.51418366]
[1748470977644,10.84958366,170.79,170.74,10.84958366]
[1748470978020,16.70498776,170.79,170.74,10.84958366]
[1748470978221,10.84958366,170.77,170.72,10.84958366]
[1748470978535,10.84958366,170.77,170.71,148.4]
[1748470978536,10.84958366,170.76,170.71,10.84958366]
[1748470979350,10.84958366,170.77,170.72,10.84958366]
[1748470980416,10.84958366,170.76,170.72,10.84958366]
[1748470982350,16.70581908,170.76,170.72,10.84958366]
[1748470982722,10.84958366,170.76,170.72,10.84958366]
[1748470985162,16.70577202,170.76,170.71,10.84958366]
[1748470986565,10.84958366,170.76,170.72,10.84958366]
[1748470987684,10.84958366,170.77,170.73,10.84958366]
[1748470988365,10.84958366,170.78,170.74,10.84958366]
[1748470988754,26.0,170.79,170.75,10.84958366]
[1748470989365,10.84958366,170.8,170.76,10.84958366]
[1748470994583,10.84958366,170.79,170.72,18.64964886]
[1748470994788,10.84958366,170.75,170.7,149.9309]
[1748470994991,10.84958366,170.72,170.68,159.24958366]
[1748470995150,10.84958366,170.71,170.67,10.84958366]
[1748470996048,10.84958366,170.71,170.66,12.43828366]
[1748470996854,10.84958366,170.71,170.67,10.84958366]
[1748470997777,10.84958366,170.74,170.69,10.84958366]
[1748471001385,10.84958366,170.73,170.68,10.84958366]
[1748471003665,15.03657706,170.75,170.68,10.84958366]
[1748471003666,10.84958366,170.72,170.68,10.84958366]
[1748471004455,10.84958366,170.73,170.68,10.84958366]
[1748471005365,10.84958366,170.71,170.67,10.84958366]
[1748471006986,10.84958366,170.71,170.66,12.43828366]
[1748471007192,10.84958366,170.7,170.65,10.84958366]
[1748471007873,10.84958366,170.7,170.66,10.84958366]
[1748471008987,16.70759297,170.71,170.66,10.84958366]
[1748471017287,16.70759297,170.71,170.67,10.84958366]
[1748471018604,10.84958366,170.71,170.67,10.84958366]
[1748471018901,10.84958366,170.72,170.67,10.84958366]
[1748471019485,16.70685295,170.73,170.68,10.84958366]
[1748471022912,10.84958366,170.72,170.67,10.84958366]
[1748471024219,16.70730739,170.72,170.67,10.84958366]
[1748471025796,10.84958366,170.71,170.67,10.84958366]
[1748471027728,26.28432314,170.74,170.69,10.84958366]
[1748471027729,26.0,170.74,170.69,10.84958366]
[1748471028023,10.84958366,170.73,170.69,10.84958366]
[1748471028224,10.84958366,170.73,170.68,10.84958366]
[1748471029606,10.84958366,170.72,170.67,10.84958366]
[1748471042734,20.02958366,170.73,170.68,10.84958366]
[1748471043057,20.02958366,170.73,170.68,12.40618366]
[1748471043852,10.84958366,170.72,170.67,10.84958366]
[1748471044666,10.84958366,170.7,170.65,10.84958366]
[1748471045235,10.84958366,170.7,170.66,10.84958366]
[1748471045557,10.84958366,170.7,170.65,10.84958366]
[1748471050040,10.84958366,170.69,170.64,12.40618366]
[1748471053467,16.70816895,170.69,170.64,149.9566]
[1748471053766,10.84958366,170.67,170.64,148.4]
[1748471053948,10.84958366,170.67,170.63,159.24958366]
[1748471055752,10.84958366,170.67,170.63,148.4]
[1748471057461,16.70886616,170.67,170.63,148.4]
[1748471057792,10.84958366,170.65,170.63,148.4]
[1748471058086,10.84958366,170.64,170.6,26.0]
[1748471058283,15.30360564,170.67,170.58,10.84958366]
[1748471058284,10.84958366,170.63,170.58,10.84958366]
[1748471058884,10.84958366,170.62,170.57,10.84958366]
[1748471059087,10.84958366,170.62,170.58,10.84958366]
[1748471059982,10.84958366,170.63,170.58,10.84958366]
[1748471060194,9.16,170.67,170.62,10.84958366]
[1748471060393,20.00958366,170.67,170.62,10.84958366]
[1748471061398,10.84958366,170.66,170.61,10.84958366]
[1748471063460,16.70921281,170.66,170.61,10.84958366]
[1748471063673,10.84958366,170.65,170.6,10.84958366]
[1748471068075,10.84958366,170.64,170.6,10.84958366]
[1748471069492,10.84958366,170.65,170.6,10.84958366]
[1748471070680,10.84958366,170.64,170.59,10.84958366]
[1748471071476,10.84958366,170.64,170.6,10.84958366]
[1748471073610,9.16,170.67,170.57,26.0]
[1748471073611,9.16,170.67,170.62,10.84958366]
[1748471073815,10.84958366,170.66,170.62,10.84958366]
[1748471074022,10.84958366,170.66,170.61,10.84958366]
[1748471075705,10.84958366,170.66,170.62,10.84958366]
[1748471075908,20.00958366,170.67,170.62,10.84958366]
[1748471078113,10.84958366,170.66,170.58,18.64964886]
[1748471078313,10.84958366,170.66,170.62,10.84958366]
[1748471079692,9.16,170.67,170.64,10.84958366]
[1748471080903,9.16,170.67,170.63,10.84958366]
[1748471083128,20.00958366,170.67,170.62,10.84958366]
[1748471083319,10.84958366,170.66,170.61,160.84468366]
[1748471083833,10.84958366,170.66,170.62,10.84958366]
[1748471085626,20.00958366,170.67,170.62,10.84958366]
[1748471086615,20.00958366,170.67,170.63,10.84958366]
[1748471093753,9.16,170.67,170.65,10.84958366]
[1748471094840,9.16,170.67,170.64,10.84958366]
[1748471095244,10.84958366,170.69,170.64,10.84958366]
[1748471097245,16.70823078,170.69,170.64,10.84958366]
[1748471097939,10.84958366,170.68,170.64,10.84958366]
[1748471098831,10.84958366,170.68,170.63,159.24958366]
[1748471101667,10.84958366,170.68,170.64,10.84958366]
[1748471102442,16.7085868,170.68,170.64,10.84958366]
[1748471104969,16.7085868,170.68,170.63,148.4]
[1748471105149,16.7085868,170.68,170.63,159.24958366]
[1748471105552,16.7085868,170.68,170.63,148.4]
[1748471105766,16.7085868,170.68,170.63,159.24958366]
[1748471109378,10.84958366,170.68,170.63,159.24958366]
[1748471109979,16.70850598,170.68,170.63,159.24958366]
[1748471111981,16.70850598,170.68,170.64,10.84958366]
[1748471113256,10.84958366,170.67,170.63,148.4]
[1748471113496,10.84958366,170.64,170.6,26.0]
[1748471114566,10.84958366,170.63,170.59,159.24958366]
[1748471116681,10.84958366,170.63,170.59,148.4]
[1748471117073,10.84958366,170.63,170.59,159.24958366]
[1748471117391,25.87002748,170.64,170.59,159.24958366]
[1748471118093,10.84958366,170.61,170.59,148.4]
[1748471118309,10.84958366,170.6,170.56,10.84958366]
[1748471118488,35.90432314,170.63,170.58,10.84958366]
[1748471118688,10.84958366,170.62,170.58,10.84958366]
[1748471120010,46.7539068,170.63,170.58,10.84958366]
[1748471120589,46.7539068,170.63,170.59,10.84958366]
[1748471121697,35.62,170.63,170.6,10.84958366]
[1748471122804,9.16,170.64,170.6,10.84958366]
[1748471123892,9.16,170.64,170.61,10.84958366]
[1748471128125,9.16,170.64,170.6,10.84958366]
[1748471128517,20.00958366,170.64,170.6,10.84958366]
[1748471129506,9.16,170.64,170.6,10.84958366]
[1748471129707,9.16,170.64,170.61,10.84958366]
[1748471131113,9.16,170.64,170.6,10.84958366]
[1748471131805,20.00958366,170.64,170.6,10.84958366]
[1748471133028,9.16,170.64,170.6,10.84958366]
[1748471136254,25.87009768,170.64,170.6,10.84958366]
[1748471136454,25.87009768,170.64,170.59,10.84958366]
[1748471137149,10.84958366,170.63,170.59,10.84958366]
[1748471137645,25.87009768,170.64,170.59,10.84958366]
[1748471139142,16.71026286,170.63,170.59,10.84958366]
[1748471139339,16.71026286,170.63,170.58,10.84958366]
[1748471139538,10.84958366,170.61,170.57,10.84958366]
[1748471141665,11.1339068,170.62,170.58,10.84958366]
[1748471142660,11.1339068,170.62,170.54,174.4]
[1748471142661,10.84958366,170.61,170.56,10.84958366]
[1748471143362,36.84958366,170.57,170.53,148.4]
[1748471143540,10.84958366,170.55,170.49,149.9322]
[1748471143736,10.84958366,170.55,170.51,10.84958366]
[1748471143939,10.84958366,170.55,170.5,10.84958366]
[1748471144446,10.84958366,170.54,170.49,149.9322]
[1748471144757,10.84958366,170.55,170.5,10.84958366]
[1748471144932,72.7539068,170.56,170.51,10.84958366]
[1748471145455,35.62,170.56,170.52,10.84958366]
[1748471145954,26.16445238,170.57,170.53,17.00445238]
[1748471146153,26.16445238,170.57,170.52,17.00445238]
[1748471146357,17.00445238,170.56,170.52,17.00445238]
[1748471146735,17.00445238,170.56,170.51,17.00445238]
[1748471147047,17.00445238,170.55,170.51,17.00445238]
[1748471148051,0.28432314,170.56,170.5,17.00445238]
[1748471148052,17.00445238,170.54,170.5,17.00445238]
[1748471148249,17.00445238,170.55,170.5,17.00445238]
[1748471148453,17.00445238,170.54,170.49,148.4]
[1748471148650,17.00445238,170.54,170.49,17.00445238]
[1748471150057,17.00445238,170.54,170.5,17.00445238]
[1748471150453,17.00445238,170.55,170.5,17.00445238]
[1748471153055,22.86785699,170.55,170.5,17.00445238]
[1748471153977,22.86785699,170.55,170.46,165.40445238]
[1748471154152,22.86785699,170.55,170.5,17.00445238]
[1748471154479,22.86785699,170.55,170.51,17.00445238]
[1748471156781,5.86340461,170.55,170.51,17.00445238]
[1748471157274,23.15192689,170.56,170.51,17.00445238]
[1748471158191,23.15192689,170.56,170.47,26.0]
[1748471158192,17.00445238,170.55,170.47,26.0]
[1748471158366,22.8679595,170.55,170.51,17.00445238]
[1748471159683,5.86350712,170.55,170.51,17.00445238]
[1748471159895,22.8679595,170.55,170.51,17.00445238]
[1748471160086,5.86350712,170.55,170.51,17.00445238]
[1748471160275,22.8679595,170.55,170.51,17.00445238]
[1748471163689,9.16,170.54,170.51,17.00445238]
[1748471165105,9.16,170.54,170.5,17.00445238]
[1748471165711,9.16,170.54,170.53,17.00445238]
[1748471166001,9.16,170.59,170.53,17.00445238]
[1748471166311,9.16,170.59,170.57,17.00445238]
[1748471167410,9.16,170.59,170.55,17.00445238]
[1748471167412,15.02203896,170.59,170.55,17.00445238]
[1748471168288,15.02203896,170.59,170.51,149.9221]
[1748471168499,15.02203896,170.59,170.55,17.00445238]
[1748471169500,15.02203896,170.59,170.56,17.00445238]
[1748471171207,15.02203896,170.59,170.55,17.00445238]
[1748471171383,0.28432314,170.58,170.54,17.00445238]
[1748471171585,17.28877552,170.58,170.54,17.00445238]
[1748471172001,17.28877552,170.58,170.53,17.00445238]
[1748471172394,17.28877552,170.58,170.53,43.00445238]
[1748471172907,22.86714804,170.57,170.53,43.00445238]
[1748471173714,17.00445238,170.55,170.5,148.4]
[1748471173907,17.00445238,170.55,170.51,17.00445238]
[1748471174401,17.00445238,170.55,170.5,17.00445238]
[1748471175327,5.86372698,170.54,170.5,17.00445238]
[1748471179137,5.86372698,170.54,170.48,26.0]
[1748471179339,5.86372698,170.54,170.51,17.00445238]
[1748471181445,15.02372698,170.54,170.51,17.00445238]
[1748471182524,9.16,170.54,170.5,26.0]
[1748471182731,9.16,170.54,170.53,17.00445238]
[1748471183235,9.16,170.54,170.52,17.00445238]
[1748471184615,9.16,170.54,170.51,17.00445238]
[1748471185039,15.02375294,170.54,170.51,17.00445238]
[1748471190945,32.02820532,170.54,170.5,26.0]
[1748471191443,17.28877552,170.53,170.48,17.00445238]
[1748471191647,17.00445238,170.52,170.47,18.58715238]
[1748471191855,17.00445238,170.52,170.48,17.00445238]
[1748471192072,5.86475866,170.51,170.48,17.00445238]
[1748471192421,5.8645464,170.52,170.48,17.00445238]
[1748471192826,5.8645464,170.52,170.49,17.00445238]
[1748471193943,9.16,170.54,170.5,17.00445238]
[1748471194138,44.78,170.54,170.51,17.00445238]
[1748471194451,44.78,170.54,170.47,1.5827]
[1748471194452,50.64377279,170.54,170.5,17.00445238]
[1748471195352,50.64377279,170.54,170.51,17.00445238]
[1748471195852,50.64377279,170.54,170.5,17.00445238]
[1748471196022,5.86441473,170.52,170.5,17.00445238]
[1748471196831,5.86441473,170.52,170.49,17.00445238]
[1748471197028,5.86441473,170.52,170.47,1.5827]
[1748471197766,5.86441473,170.52,170.48,17.00445238]
[1748471197767,0.28432314,170.51,170.48,17.00445238]
[1748471198372,6.1491425,170.51,170.48,17.00445238]
[1748471199079,6.1491425,170.51,170.49,17.00445238]
[1748471199869,0.28432314,170.51,170.49,17.00445238]
[1748471202347,31.86418351,170.53,170.5,17.00445238]
[1748471202348,26.0,170.53,170.5,17.00445238]
[1748471202538,35.62,170.53,170.51,17.00445238]
[1748471203044,35.62,170.53,170.5,17.00445238]
[1748471204638,41.48421213,170.53,170.5,17.00445238]
[1748471205462,16.84411989,170.61,170.46,165.40445238]
[1748471205463,14.65480154,170.6,170.52,17.00445238]
[1748471205764,26.0,170.58,170.55,17.00445238]
[1748471205941,0.28432314,170.57,170.55,17.00445238]
[1748471206143,0.28432314,170.57,170.54,17.00445238]
[1748471207447,6.147041,170.57,170.54,17.00445238]
[1748471208941,6.147041,170.57,170.49,1.6055]
[1748471208942,23.15149338,170.57,170.49,150.0055]
[1748471209147,23.15149338,170.57,170.52,17.00445238]
[1748471209567,6.147041,170.57,170.52,17.00445238]
[1748471209750,6.147041,170.57,170.53,17.00445238]
[1748471210173,6.147041,170.57,170.54,17.00445238]
[1748471210673,6.147041,170.57,170.49,167.00995238]
[1748471210674,0.28432314,170.54,170.49,167.00995238]
[1748471210872,9.14,170.53,170.49,18.60995238]
[1748471211276,5.86441473,170.52,170.5,17.00445238]
[1748471212357,5.86441473,170.52,170.49,1.6055]
[1748471212559,5.86441473,170.52,170.45,1.5246]
[1748471212762,17.28877552,170.51,170.46,17.00445238]
[1748471213384,5.86510263,170.5,170.46,17.00445238]
[1748471213963,5.86510263,170.5,170.47,17.00445238]
[1748471214151,6.14908388,170.51,170.47,17.00445238]
[1748471215057,6.14908388,170.51,170.48,17.00445238]
[1748471215964,5.86448905,170.52,170.49,17.00445238]
[1748471221677,62.04877552,170.53,170.5,17.00445238]
[1748471221678,9.14,170.53,170.5,17.00445238]
[1748471224681,9.14,170.53,170.51,17.00445238]
[1748471224988,9.14,170.53,170.52,17.00445238]
[1748471239503,9.14,170.58,170.52,17.00445238]
[1748471239800,9.14,170.58,170.56,17.00445238]
[1748471244885,9.14,170.58,170.57,17.00445238]
[1748471247802,9.14,170.58,170.55,17.00445238]
[1748471247983,15.00235197,170.58,170.55,17.00445238]
[1748471249291,15.00235197,170.58,170.54,17.00445238]
[1748471249693,32.00680435,170.58,170.54,17.00445238]
[1748471251311,32.00680435,170.58,170.51,148.4]
[1748471251513,32.00680435,170.58,170.54,17.00445238]
[1748471251722,67.60680435,170.58,170.54,17.00445238]
[1748471252709,67.60680435,170.58,170.53,17.00445238]
[1748471253086,17.00445238,170.57,170.53,17.00445238]